bitfinex/quotes_BTCUSD_20260103
["timestamp","ask_amount","ask_price","bid_price","bid_amount"]
[1767472784706,0.01108745,90192.0,90188.0,0.01108794]
[1767472794733,0.01108782,90189.0,90183.0,0.05544242]
[1767472795048,0.0110877,90190.0,90186.0,0.01108819]
[1767472795502,0.0110877,90190.0,90187.0,0.01108807]
[1767472795814,0.01108745,90192.0,90187.0,0.01108807]
[1767472796949,0.01108745,90192.0,90188.0,0.01108794]
[1767472797443,0.01108745,90192.0,90188.0,0.06652768]
[1767472799043,0.01108745,90192.0,90188.0,0.01108794]
[1767472800418,0.01108758,90191.0,90187.0,0.01108807]
[1767472800813,0.01108745,90192.0,90188.0,0.01108794]
[1767472801048,0.06652426,90193.0,90189.0,0.01108782]
[1767472801364,0.01108733,90193.0,90189.0,0.01108782]
[1767472803149,0.01108733,90193.0,90188.0,0.01108794]
[1767472803150,0.01108745,90192.0,90188.0,0.01108794]
[1767472804358,0.01108733,90193.0,90189.0,0.01108782]
[1767472805557,0.01108733,90193.0,90190.0,0.0110877]
[1767472809631,0.05945747,90193.0,90189.0,0.01108782]
[1767472809867,0.05543889,90190.0,90185.0,0.05544106]
[1767472810065,0.0110877,90190.0,90186.0,0.01108819]
[1767472810266,0.04837014,90191.0,90186.0,0.06652858]
[1767472810447,0.04837014,90191.0,90188.0,0.01108794]
[1767472811509,0.01108782,90189.0,90183.0,0.01108856]
[1767472811690,0.01108794,90188.0,90184.0,0.01108844]
[1767472811866,0.04837014,90187.0,90183.0,0.01108856]
[1767472812074,0.04837014,90187.0,90184.0,0.01108844]
[1767472812291,0.0110877,90190.0,90180.0,0.01108893]
[1767472812292,0.05945858,90184.0,90180.0,0.01108893]
[1767472812610,0.04837014,90186.0,90184.0,0.000999]
[1767472813120,0.04837014,90186.0,90183.0,0.01108856]
[1767472813514,0.05945833,90186.0,90182.0,0.01108868]
[1767472813715,0.04837014,90186.0,90183.0,0.01108856]
[1767472813923,0.05945833,90186.0,90182.0,0.01108868]
[1767472814374,0.05945833,90186.0,90178.0,0.05544547]
[1767472814375,0.01108893,90180.0,90170.0,0.01109016]
[1767472814596,0.01108967,90174.0,90171.0,0.0222]
[1767472815402,0.01108979,90173.0,90168.0,0.0110904]
[1767472815613,0.06653861,90174.0,90168.0,0.0110904]
[1767472815614,0.01108967,90174.0,90173.0,0.000999]
[1767472815740,0.01108967,90174.0,90171.0,0.01109004]
[1767472815944,0.01108967,90174.0,90170.0,0.01109016]
[1767472816151,0.01108991,90172.0,90168.0,0.0109904]
[1767472817460,0.01109016,90170.0,90167.0,9.933e-05]
[1767472817656,0.0554519,90169.0,90167.0,9.933e-05]
[1767472819279,0.0544529,90169.0,90167.0,9.933e-05]
[1767472822058,0.0110909,90164.0,90161.0,4.004e-05]
[1767472822251,0.06661341,90164.0,90161.0,4.004e-05]
[1767472822479,0.05545563,90163.0,90161.0,4.004e-05]
[1767472823214,0.06661341,90164.0,90161.0,4.004e-05]
[1767472827114,0.0111583,90164.0,90161.0,4.004e-05]
[1767472828017,0.06661328,90164.0,90161.0,4.004e-05]
[1767472828796,6.74e-05,90164.0,90161.0,4.004e-05]
[1767472829036,0.01109053,90167.0,90162.0,0.01109114]
[1767472829247,0.06653862,90174.0,90169.0,0.01109028]
[1767472829448,0.0222,90171.0,90168.0,0.0110904]
[1767472829600,0.0222,90171.0,90168.0,0.06654239]
[1767472830755,0.0222,90171.0,90168.0,0.0110904]
[1767472832855,0.03329004,90171.0,90168.0,0.0110904]
[1767472833709,0.03329004,90171.0,90167.0,0.01109053]
[1767472833918,0.000999,90168.0,90166.0,0.01109065]
[1767472834050,0.01109016,90170.0,90166.0,0.01109065]
[1767472834885,0.01109028,90169.0,90164.0,0.0110909]
[1767472835935,0.0110904,90168.0,90164.0,0.0110909]
[1767472836314,0.0110904,90168.0,90165.0,0.01109077]
[1767472836533,0.0110904,90168.0,90165.0,0.01009177]
[1767472836895,0.01109028,90169.0,90165.0,0.01009177]
[1767472842043,0.05545512,90163.0,90162.0,9.937e-05]
[1767472842249,0.05545512,90163.0,90161.0,1e-08]
[1767472843481,6.739e-05,90161.0,90160.0,0.0222]
[1767472843675,6.739e-05,90161.0,90160.0,0.021201]
[1767472844077,6.739e-05,90161.0,90158.0,0.06654981]
[1767472844282,0.01109102,90163.0,90159.0,0.01109151]
[1767472845201,0.05971212,90163.0,90158.0,0.01654981]
[1767472845400,0.05971212,90163.0,90157.0,0.00553469]
[1767472845801,0.05971212,90163.0,90159.0,0.01109151]
[1767472846003,0.01109114,90162.0,90157.0,0.06099292]
[1767472846340,0.01109102,90163.0,90159.0,0.01109151]
[1767472846905,0.01109102,90163.0,90159.0,0.05926818]
[1767472847308,0.01109102,90163.0,90161.0,0.04817667]
[1767472851490,0.01109102,90163.0,90157.0,0.06099292]
[1767472851491,0.01109114,90162.0,90157.0,0.05926843]
[1767472851663,6.739e-05,90161.0,90157.0,0.05926843]
[1767472852336,0.01109127,90161.0,90158.0,0.01109163]
[1767472852471,0.01109127,90161.0,90159.0,0.04817667]
[1767472854011,0.0110909,90164.0,90159.0,0.05926818]
[1767472854219,0.0110909,90164.0,90161.0,0.05910828]
[1767472854577,0.0110909,90164.0,90161.0,0.04817667]
[1767472854788,0.06654577,90164.0,90161.0,0.04817667]
[1767472858655,0.06645809,90164.0,90161.0,0.04817667]
[1767472859268,0.05545551,90163.0,90161.0,0.04817667]
[1767472859464,0.06645819,90164.0,90161.0,0.04817667]
[1767472861765,0.05545424,90165.0,90161.0,0.04817667]
[1767472861973,0.05437426,91100.0,90161.0,0.04817667]
[1767472861974,0.0002,90195.0,90165.0,0.05723953]
[1767472862180,0.05544206,90185.0,90179.0,0.05839597]
[1767472862408,0.01108819,90186.0,90181.0,0.05544359]
[1767472862783,0.01108819,90186.0,90182.0,0.01108868]
[1767472862979,0.01108831,90185.0,90181.0,0.01108881]
[1767472863182,0.01098831,90185.0,90182.0,0.01108868]
[1767472863501,0.01108819,90186.0,90182.0,0.01108868]
[1767472864338,0.01113982,90186.0,90182.0,0.01108868]
[1767472865535,5.163e-05,90186.0,90184.0,0.05544172]
[1767472866292,0.0001494,90188.0,90187.0,0.05544036]
[1767472866510,0.0222,90192.0,90189.0,0.01108782]
[1767472867110,0.0222,90192.0,90189.0,0.06652646]
[1767472867283,0.0222,90192.0,90190.0,0.05543801]
[1767472867535,0.0222,90192.0,90189.0,0.06652646]
[1767472867665,0.000999,90190.0,90189.0,0.06652646]
[1767472867857,0.0222,90192.0,90189.0,0.06652646]
[1767472869498,0.0222,90192.0,90190.0,0.05543807]
[1767472871367,0.06020501,90194.0,90191.0,0.01108758]
[1767472871569,0.06020501,90194.0,90191.0,0.01056426]
[1767472872287,0.10925961,90194.0,90191.0,0.05543734]
[1767472873108,0.10925961,90194.0,90191.0,0.06652492]
[1767472873312,0.06020501,90194.0,90192.0,0.05543679]
[1767472873698,0.06020501,90194.0,90191.0,0.06652492]
[1767472874098,0.00121579,90191.0,90190.0,0.01652621]
[1767472874505,0.06020501,90194.0,90191.0,0.01108758]
[1767472876987,0.03800501,90194.0,90191.0,0.06652493]
[1767472878189,0.03800501,90194.0,90192.0,0.05543675]
[1767472878397,0.03800501,90194.0,90191.0,0.06652493]
[1767472878821,0.03800501,90194.0,90193.0,0.05543667]
[1767472879547,0.03800501,90194.0,90191.0,0.11383185]
[1767472880494,0.03800501,90194.0,90192.0,0.05543688]
[1767472883187,0.0002,90195.0,90194.0,0.05534478]
[1767472883825,0.0222,90199.0,90197.0,0.0554342]
[1767472884010,0.00047876,90204.0,90201.0,0.01108635]
[1767472884187,0.0222,90202.0,90201.0,0.01008735]
[1767472887845,0.00047876,90204.0,90202.0,0.05543114]
[1767472888018,0.00047876,90204.0,90202.0,0.05643014]
[1767472888232,0.00047876,90204.0,90202.0,0.05543114]
[1767472888854,0.00047876,90204.0,90202.0,0.05543097]
[1767472891291,0.00021679,90202.0,90201.0,0.06551859]
[1767472891628,7.9e-07,90202.0,90201.0,0.06551859]
[1767472892191,7.9e-07,90202.0,90201.0,0.06530259]
[1767472897891,0.05000079,90202.0,90201.0,0.06530259]
[1767472899392,0.00047876,90204.0,90203.0,0.05543052]
[1767472900717,0.00047876,90204.0,90201.0,0.06530259]
[1767472901126,0.00047876,90204.0,90202.0,0.05543072]
[1767472901684,0.00047876,90204.0,90201.0,0.06530259]
[1767472902644,0.00047876,90204.0,90202.0,0.05543068]
[1767472904403,0.00047876,90204.0,90202.0,0.05543065]
[1767472904827,0.00047876,90204.0,90201.0,0.06530259]
[1767472905056,0.00047876,90204.0,90202.0,0.05543077]
[1767472906867,0.00047876,90204.0,90199.0,0.01108659]
[1767472907062,0.06651909,90200.0,90195.0,0.01108708]
[1767472907262,0.01108635,90201.0,90196.0,0.01108696]
[1767472907469,0.01108635,90201.0,90197.0,0.01108684]
[1767472908016,0.06651796,90202.0,90197.0,0.01108684]
[1767472908216,0.01108635,90201.0,90197.0,0.01108684]
[1767472911001,0.01108635,90201.0,90198.0,0.01108672]
[1767472911382,0.01108635,90201.0,90197.0,0.01108684]
[1767472912030,0.01108647,90200.0,90196.0,0.01108696]
[1767472912232,0.01108635,90201.0,90197.0,0.01108684]
[1767472913657,0.03376474,90204.0,90201.0,0.000999]
[1767472913903,0.00047876,90204.0,90200.0,0.05275608]
[1767472914063,0.00047876,90204.0,90201.0,0.01108635]
[1767472914273,0.00047876,90204.0,90202.0,0.05543114]
[1767472915036,0.00047876,90204.0,90202.0,0.05535686]
[1767472919366,0.00047876,90204.0,90202.0,0.04435786]
[1767472919782,0.00047876,90204.0,90201.0,0.01108635]
[1767472920833,0.0110861,90203.0,90199.0,0.01108659]
[1767472921133,0.01156474,90204.0,90200.0,0.01108647]
[1767472924282,0.01108622,90202.0,90198.0,0.01108672]
[1767472924408,0.01156474,90204.0,90199.0,0.01108659]
[1767472924809,0.01156474,90204.0,90200.0,0.01108647]
[1767472929162,0.0110861,90203.0,90199.0,0.01108659]
[1767472929364,0.01156474,90204.0,90200.0,0.01108647]
[1767472929785,0.05543152,90202.0,90196.0,0.06652121]
[1767472929985,0.06651662,90203.0,90197.0,0.06652048]
[1767472930164,0.06057037,90203.0,90198.0,0.01844546]
[1767472930912,0.0110861,90203.0,90199.0,0.01108659]
[1767472931121,0.0110861,90203.0,90199.0,0.01098659]
[1767472932097,0.01108635,90201.0,90197.0,0.06652048]
[1767472933835,0.01108647,90200.0,90197.0,0.01108684]
[1767472935049,0.01108647,90200.0,90196.0,0.01108696]
[1767472936061,0.06651865,90201.0,90197.0,0.01108684]
[1767472936265,0.01108635,90201.0,90197.0,0.01108684]
[1767472936494,0.01108635,90201.0,90198.0,0.01108672]
[1767472936877,0.01108622,90202.0,90198.0,0.01104108]
[1767472937062,0.01108622,90202.0,90198.0,0.01099544]
[1767472937693,0.01108635,90201.0,90198.0,0.01099544]
[1767472937892,0.01108635,90201.0,90197.0,0.01108684]
[1767472938279,0.01108622,90202.0,90198.0,0.01108672]
[1767472938934,0.01108622,90202.0,90199.0,0.01108659]
[1767472939128,0.01108622,90202.0,90198.0,0.01108672]
[1767472944189,0.01108635,90201.0,90196.0,0.01108696]
[1767472944901,0.01108647,90200.0,90196.0,0.01108696]
[1767472949358,0.01108635,90201.0,90197.0,0.01108684]
[1767472950364,0.01108647,90200.0,90196.0,0.01108696]
[1767472950967,0.06651957,90199.0,90192.0,0.05543687]
[1767472951171,0.06652113,90197.0,90191.0,0.01108758]
[1767472951794,0.06652113,90197.0,90192.0,0.01108745]
[1767472951795,0.01108696,90196.0,90192.0,0.01108745]
[1767472952006,0.01108696,90196.0,90193.0,0.01108733]
[1767472952314,0.01108684,90197.0,90193.0,0.06652398]
[1767472953690,0.01108745,90192.0,90188.0,0.01108794]
[1767472954223,0.01108733,90193.0,90189.0,0.01108782]
[1767472955109,0.05543653,90194.0,90190.0,0.0110877]
[1767472955676,0.01108733,90193.0,90188.0,0.01108794]
[1767472956105,0.01108733,90193.0,90189.0,0.06652692]
[1767472956882,0.01108733,90193.0,90189.0,0.01108782]
[1767472957219,0.05543653,90194.0,90193.0,0.000999]
[1767472957614,0.06652374,90194.0,90190.0,0.0110877]
[1767472958279,0.07763415,90198.0,90192.0,0.01108745]
[1767472958498,0.07763415,90198.0,90194.0,0.01108721]
[1767472958499,0.021201,90198.0,90194.0,0.01108721]
[1767472958660,0.00814785,90198.0,90195.0,0.01108708]
[1767472960390,0.0222,90197.0,90194.0,0.05683804]
[1767472960610,0.01108672,90198.0,90194.0,0.05683804]
[1767472960810,0.0222,90197.0,90194.0,0.05683804]
[1767472961861,0.0122,90197.0,90194.0,0.05683804]
[1767472962240,0.0122,90197.0,90194.0,0.11227371]
[1767472963784,0.02328684,90197.0,90194.0,0.03475183]
[1767472963967,0.02328684,90197.0,90193.0,0.01108733]
[1767472964590,0.01108696,90196.0,90190.0,0.055438]
[1767472964799,0.01108708,90195.0,90191.0,0.01108758]
[1767472968013,0.01108721,90194.0,90190.0,0.05683853]
[1767472970448,0.01108708,90195.0,90190.0,0.11227643]
[1767472970625,0.01108708,90195.0,90194.0,0.000999]
[1767472971021,0.01108708,90195.0,90192.0,0.01108745]
[1767472971241,0.02328684,90197.0,90193.0,0.01108733]
[1767472971369,0.0222,90197.0,90194.0,0.01108721]
[1767472971572,0.03328684,90197.0,90193.0,0.01108733]
[1767472973914,0.08872148,90197.0,90192.0,0.06652473]
[1767472974721,0.01108696,90196.0,90192.0,0.06652473]
[1767472975754,0.01108696,90196.0,90192.0,0.01108745]
[1767472975952,0.01108708,90195.0,90192.0,0.01108745]
[1767472976188,0.01108708,90195.0,90190.0,0.05683853]
[1767472976420,0.01108708,90195.0,90191.0,0.01108758]
[1767472979555,0.0222,90197.0,90193.0,0.01108733]
[1767472979796,0.0222,90197.0,90195.0,0.01]
[1767472980016,0.0222,90197.0,90194.0,0.01108721]
[1767472980411,0.0222,90197.0,90194.0,0.06652278]
[1767472981820,0.0222,90197.0,90194.0,0.01108721]
[1767472981981,0.0222,90197.0,90194.0,0.05857137]
[1767472982418,0.0222,90197.0,90194.0,0.11400704]
[1767472983847,0.0222,90197.0,90194.0,0.06652288]
[1767472984410,0.0110861,90203.0,90198.0,0.01108672]
[1767472984614,0.01108561,90207.0,90203.0,0.0110861]
[1767472984812,0.0222,90205.0,90203.0,2e-08]
[1767472985762,1e-08,90206.0,90205.0,0.05642829]
[1767472986053,1e-08,90206.0,90205.0,0.06642829]
[1767472986252,1e-08,90206.0,90205.0,0.01]
[1767472986455,1e-08,90206.0,90204.0,0.05542947]
[1767472986657,0.01108475,90214.0,90206.0,0.06651388]
[1767472986802,0.01108475,90214.0,90207.0,0.01108561]
[1767472986803,0.0222,90208.0,90207.0,0.01108561]
[1767472987208,0.0222,90208.0,90206.0,0.06651388]
[1767472987414,0.021201,90208.0,90206.0,0.06651388]
[1767472988127,0.05542481,90213.0,90206.0,0.06651388]
[1767472988128,0.00010744,90214.0,90208.0,0.01108549]
[1767472988369,0.00010744,90214.0,90211.0,0.01103801]
[1767472988532,0.00010744,90214.0,90211.0,0.01003901]
[1767472988736,0.00010744,90214.0,90211.0,0.06546442]
[1767472988958,4.4e-07,90214.0,90212.0,0.05542444]
[1767472989680,4.4e-07,90214.0,90211.0,0.06546442]
[1767472990655,4.4e-07,90214.0,90213.0,0.05542438]
[1767472990862,4.4e-07,90214.0,90211.0,0.06546442]
[1767472997003,4.4e-07,90214.0,90212.0,0.10290871]
[1767472997134,4.4e-07,90214.0,90212.0,0.10286308]
[1767473001252,4.4e-07,90214.0,90212.0,0.05537892]
[1767473002820,0.04656103,90213.0,90211.0,0.03837296]
[1767473003013,0.04656103,90213.0,90212.0,0.05542455]
[1767473003587,0.01108512,90211.0,90204.0,0.01108598]
[1767473003787,0.01108512,90211.0,90207.0,0.01108561]
[1767473003986,0.01108524,90210.0,90206.0,0.05856989]
[1767473004378,0.01108524,90210.0,90207.0,0.01108561]
[1767473004578,0.01108524,90210.0,90208.0,0.04748416]
[1767473004807,0.01108512,90211.0,90208.0,0.04737716]
[1767473005319,0.06651127,90211.0,90208.0,0.04737716]
[1767473005967,0.01108561,90207.0,90203.0,0.04748418]
[1767473006100,0.01108561,90207.0,90203.0,2e-08]
[1767473006305,0.01108573,90206.0,90203.0,2e-08]
[1767473007301,0.01108549,90208.0,90203.0,0.01108612]
[1767473007507,0.01108549,90208.0,90203.0,0.05857028]
[1767473008724,0.01108561,90207.0,90203.0,0.05857028]
[1767473010233,0.01108573,90206.0,90203.0,0.05857028]
[1767473010636,0.01108573,90206.0,90203.0,2e-08]
[1767473011119,0.05542929,90205.0,90203.0,2e-08]
[1767473011317,0.06651491,90206.0,90203.0,2e-08]
[1767473011543,0.05542981,90205.0,90203.0,2e-08]
[1767473013510,0.06651491,90206.0,90203.0,2e-08]
[1767473013683,0.05542969,90205.0,90203.0,2e-08]
[1767473015798,0.06651491,90206.0,90191.0,0.04905438]
[1767473015799,0.06652351,90194.0,90191.0,0.04905438]
[1767473016004,0.0110877,90190.0,90186.0,0.01108819]
[1767473016204,0.01108758,90191.0,90187.0,0.01108807]
[1767473016539,0.01108733,90193.0,90188.0,0.01108794]
[1767473016754,0.0665234,90194.0,90191.0,0.01]
[1767473016882,0.0665234,90194.0,90190.0,0.0110877]
[1767473017339,0.06652117,90197.0,90191.0,0.01108758]
[1767473017340,0.01108684,90197.0,90191.0,0.01108758]
[1767473017570,0.0667187,90201.0,90197.0,0.01]
[1767473017759,0.01108647,90200.0,90197.0,0.01]
[1767473018639,0.06651933,90200.0,90197.0,0.01]
[1767473018810,0.01108659,90199.0,90195.0,0.01108708]
[1767473019532,0.05543278,90200.0,90195.0,0.01108708]
[1767473019738,0.0002,90201.0,90200.0,0.01]
[1767473019864,0.01108647,90200.0,90196.0,0.01108696]
[1767473022152,0.01108647,90200.0,90195.0,0.01108708]
[1767473022669,0.01108659,90199.0,90195.0,0.01108708]
[1767473023088,0.01108672,90198.0,90194.0,0.01108721]
[1767473023397,0.01108647,90200.0,90196.0,0.01108696]
[1767473023623,0.01108659,90199.0,90196.0,0.01108696]
[1767473023763,0.01108659,90199.0,90195.0,0.01108708]
[1767473026200,0.01108659,90199.0,90194.0,0.01108721]
[1767473026201,0.01108672,90198.0,90194.0,0.01108721]
[1767473029881,0.01108672,90198.0,90195.0,0.01108708]
[1767473030531,0.01108672,90198.0,90194.0,0.01108721]
[1767473031146,0.01108659,90199.0,90195.0,0.04905438]
[1767473031786,0.01108659,90199.0,90195.0,0.01108708]
[1767473032410,0.01651932,90200.0,90195.0,0.01108708]
[1767473032750,0.01108659,90199.0,90195.0,0.01108708]
[1767473033342,0.01108659,90199.0,90194.0,0.01108721]
[1767473033761,0.01108672,90198.0,90194.0,0.01108721]
[1767473034160,0.01108647,90200.0,90195.0,0.06014146]
[1767473034364,0.01108647,90200.0,90196.0,0.01108696]
[1767473035712,0.0002,90201.0,90196.0,0.01108696]
[1767473035922,0.01128635,90201.0,90197.0,0.01108684]
[1767473036115,0.01108647,90200.0,90196.0,0.01108696]
[1767473039491,0.06651888,90200.0,90196.0,0.01108696]
[1767473039690,0.01108672,90198.0,90195.0,0.01104145]
[1767473041387,0.06651888,90200.0,90195.0,0.01104145]
[1767473041870,0.01108659,90199.0,90195.0,0.01104145]
[1767473042225,0.01108672,90198.0,90194.0,0.01108721]
[1767473042711,0.000999,90195.0,90194.0,0.01108721]
[1767473043263,0.01108684,90197.0,90194.0,0.01108721]
[1767473046088,0.01108672,90198.0,90194.0,0.01108721]
[1767473046872,0.0002,90201.0,90194.0,0.01108721]
[1767473047072,0.01108659,90199.0,90196.0,0.01108696]
[1767473047448,0.01108659,90199.0,90196.0,0.01008796]
[1767473048073,0.01108659,90199.0,90194.0,0.01108721]
[1767473048486,0.01108659,90199.0,90195.0,0.06652246]
[1767473048648,0.01108659,90199.0,90196.0,0.01108696]
[1767473050186,0.01108659,90199.0,90195.0,0.01108708]
[1767473052601,0.01108647,90200.0,90196.0,0.01108696]
[1767473052799,0.0002,90201.0,90200.0,0.00995617]
[1767473053525,0.0002,90201.0,90199.0,0.0554326]
[1767473055071,1e-08,90201.0,90199.0,0.0554326]
[1767473055245,0.01108585,90205.0,90201.0,0.01128634]
[1767473055433,0.07762809,90207.0,90201.0,0.01128634]
[1767473055627,0.01108573,90206.0,90202.0,0.01108622]
[1767473057098,0.01108585,90205.0,90202.0,0.01108622]
[1767473057888,0.01108585,90205.0,90201.0,0.01108635]
[1767473058097,0.01108549,90208.0,90202.0,0.06651697]
[1767473058325,0.01108561,90207.0,90203.0,0.0110861]
[1767473059584,0.00049557,90209.0,90207.0,0.000999]
[1767473059937,0.05592283,90209.0,90207.0,0.000999]
[1767473060138,0.01108549,90208.0,90204.0,0.01108598]
[1767473063714,0.00049557,90209.0,90206.0,0.01108573]
[1767473063951,0.00049557,90209.0,90208.0,0.000999]
[1767473064434,0.00049557,90209.0,90206.0,0.01108573]
[1767473064999,0.00049557,90209.0,90206.0,0.06651393]
[1767473066581,0.00049557,90209.0,90208.0,0.05542745]
[1767473066774,5.7e-07,90209.0,90208.0,0.05542745]
[1767473072117,5.7e-07,90209.0,90208.0,0.05493245]
[1767473072327,5.7e-07,90209.0,90206.0,0.06651393]
[1767473072527,4.384e-05,90208.0,90206.0,0.01108573]
[1767473074439,8.4e-07,90208.0,90206.0,0.06651395]
[1767473074580,5.7e-07,90209.0,90206.0,0.06651395]
[1767473075651,5.7e-07,90209.0,90207.0,0.05542751]
[1767473081718,5.7e-07,90209.0,90207.0,0.05538451]
[1767473096845,5.7e-07,90209.0,90206.0,0.06651395]
[1767473097449,5.7e-07,90209.0,90208.0,0.05542745]
[1767473105219,5.7e-07,90209.0,90208.0,0.05533616]
[1767473112835,0.01108303,90228.0,90221.0,0.01108389]
[1767473113014,0.00019702,90224.0,90222.0,0.05541853]
[1767473113154,0.02216,90228.0,90225.0,0.0664998]
[1767473113155,0.06756308,90228.0,90225.0,0.0664998]
[1767473113355,0.04540308,90227.0,90225.0,0.0110834]
[1767473113812,0.02216,90231.0,90228.0,0.01108303]
[1767473113976,0.07864574,90231.0,90226.0,0.06649966]
[1767473114346,0.05648574,90231.0,90227.0,0.01108315]
[1767473114673,0.01108278,90230.0,90226.0,0.01108327]
[1767473115565,0.05648574,90231.0,90227.0,0.01108315]
[1767473116129,0.04540308,90231.0,90228.0,0.01108303]
[1767473117377,0.01108254,90232.0,90228.0,0.0110374]
[1767473117745,0.01108241,90233.0,90229.0,0.05541455]
[1767473117958,0.01108241,90233.0,90228.0,0.0110374]
[1767473118496,0.01108278,90230.0,90225.0,0.0110834]
[1767473118792,0.01108291,90229.0,90225.0,0.0110834]
[1767473119032,0.05541517,90228.0,90222.0,0.01108377]
[1767473119203,0.05541517,90228.0,90222.0,0.06650217]
[1767473119557,0.01108315,90227.0,90224.0,0.01108352]
[1767473119968,0.05541517,90228.0,90224.0,0.01108352]
[1767473120168,0.01108291,90229.0,90224.0,0.01108352]
[1767473120376,0.01108303,90228.0,90225.0,0.0110834]
[1767473120635,0.01108291,90229.0,90225.0,0.0110834]
[1767473121373,0.01108303,90228.0,90224.0,0.01108352]
[1767473121764,0.01108303,90228.0,90223.0,0.01108364]
[1767473122380,0.01108303,90228.0,90224.0,0.01108352]
[1767473123389,0.01108291,90229.0,90224.0,0.06650093]
[1767473124256,0.01008391,90229.0,90225.0,0.0110834]
[1767473125303,0.01108278,90230.0,90226.0,0.01108327]
[1767473125712,0.01108291,90229.0,90225.0,0.0110834]
[1767473125913,0.01108291,90229.0,90226.0,0.01108327]
[1767473126334,0.08865459,90233.0,90227.0,0.01108315]
[1767473126849,0.03324241,90233.0,90229.0,0.01108291]
[1767473128521,0.02216,90233.0,90230.0,0.01108278]
[1767473129564,0.03324241,90233.0,90229.0,0.01108291]
[1767473130146,0.01108241,90233.0,90229.0,0.01108291]
[1767473130946,0.01108241,90233.0,90229.0,0.01103728]
[1767473131117,0.01108229,90234.0,90230.0,0.01108278]
[1767473131618,0.02216,90236.0,90232.0,0.01108254]
[1767473131822,0.02216,90236.0,90230.0,0.01108278]
[1767473131823,0.01108217,90235.0,90230.0,0.01108278]
[1767473132027,0.01108229,90234.0,90230.0,0.01108278]
[1767473132277,0.01108217,90235.0,90230.0,0.06649645]
[1767473132505,0.01108229,90234.0,90230.0,0.01108278]
[1767473132640,0.03324205,90236.0,90233.0,0.01108241]
[1767473132837,0.03324205,90236.0,90233.0,0.00750945]
[1767473133738,0.02216,90236.0,90233.0,0.00750945]
[1767473134177,0.0555562,90242.0,90232.0,0.06649479]
[1767473134178,0.01108057,90248.0,90243.0,0.01108119]
[1767473134413,0.01108057,90248.0,90240.0,0.01108156]
[1767473134414,0.000999,90243.0,90240.0,0.01108156]
[1767473134634,0.000999,90243.0,90240.0,0.06648882]
[1767473134831,0.01108094,90245.0,90240.0,0.01108156]
[1767473135045,0.05935733,90245.0,90240.0,0.01108156]
[1767473135371,0.01098119,90243.0,90239.0,0.01108168]
[1767473135571,0.01108106,90244.0,90240.0,0.01108156]
[1767473136112,0.05935733,90245.0,90241.0,0.01108143]
[1767473136837,0.05940495,90245.0,90241.0,0.01108143]
[1767473137351,0.01108106,90244.0,90241.0,0.01108143]
[1767473137902,0.05940495,90245.0,90241.0,0.01108143]
[1767473138768,0.05940495,90245.0,90241.0,0.0110358]
[1767473140243,0.04832401,90245.0,90241.0,0.0110358]
[1767473140425,4.762e-05,90245.0,90242.0,0.01108131]
[1767473140977,4.762e-05,90245.0,90242.0,0.06648727]
[1767473142569,4.762e-05,90245.0,90244.0,0.05540534]
[1767473142749,4.762e-05,90245.0,90244.0,0.05535971]
[1767473143400,4.762e-05,90245.0,90242.0,0.06648727]
[1767473143897,4.762e-05,90245.0,90242.0,0.01108131]
[1767473144101,4.762e-05,90245.0,90242.0,0.01008231]
[1767473145204,0.01112856,90245.0,90242.0,0.01008231]
[1767473145506,4.762e-05,90245.0,90242.0,0.01108131]
[1767473145669,4.762e-05,90245.0,90242.0,0.06648786]
[1767473146950,4.762e-05,90245.0,90242.0,0.01108131]
[1767473148951,4.762e-05,90245.0,90242.0,0.06648746]
[1767473151891,4.762e-05,90245.0,90242.0,0.06644183]
[1767473152239,6.2e-07,90245.0,90242.0,0.06644183]
[1767473153099,6.2e-07,90245.0,90242.0,0.01103568]
[1767473155737,0.04827639,90247.0,90244.0,0.01108106]
[1767473157157,0.05540208,90250.0,90245.0,0.06648565]
[1767473157393,0.01108033,90250.0,90246.0,0.01108082]
[1767473157932,0.01108033,90250.0,90246.0,0.01018777]
[1767473158493,0.01108045,90249.0,90246.0,0.01018777]
[1767473158769,0.01108033,90250.0,90246.0,0.01108082]
[1767473160687,0.01108033,90250.0,90247.0,0.0110807]
[1767473161188,0.01108045,90249.0,90245.0,0.01108094]
[1767473161372,0.05554334,90247.0,90244.0,0.01108106]
[1767473161577,0.06662404,90247.0,90242.0,0.06648749]
[1767473161777,4.846e-05,90244.0,90243.0,0.01108119]
[1767473161978,0.06662404,90247.0,90243.0,0.01108119]
[1767473162157,0.01108119,90243.0,90236.0,0.0110807]
[1767473162358,0.01108119,90243.0,90236.0,0.06649186]
[1767473162359,0.05554334,90240.0,90236.0,0.06649186]
[1767473163479,0.05554334,90240.0,90237.0,0.06649113]
[1767473164060,0.05554334,90240.0,90237.0,0.01108192]
[1767473164685,0.05554334,90240.0,90237.0,0.01103629]
[1767473165644,0.05454434,90240.0,90237.0,0.06644544]
[1767473166618,0.05454434,90240.0,90238.0,0.05540844]
[1767473168394,0.02216,90243.0,90240.0,0.07644058]
[1767473168635,0.02216,90243.0,90241.0,0.05540671]
[1767473169762,0.02216,90243.0,90241.0,0.05440771]
[1767473170527,0.021161,90243.0,90241.0,0.05440771]
[1767473170804,0.021161,90243.0,90241.0,0.05540667]
[1767473171038,0.05554334,90245.0,90244.0,0.01108106]
[1767473171226,0.02216,90246.0,90244.0,0.01103725]
[1767473171837,0.02216,90246.0,90244.0,0.01099344]
[1767473173746,0.02216,90246.0,90244.0,0.00999444]
[1767473174145,0.02216,90246.0,90244.0,0.00994881]
[1767473176650,0.03324057,90248.0,90244.0,0.00994881]
[1767473177089,0.02216,90248.0,90245.0,0.01108094]
[1767473178847,0.02216,90248.0,90245.0,0.06648517]
[1767473179052,0.07770334,90248.0,90246.0,0.05540352]
[1767473179222,0.07770334,90248.0,90245.0,0.06643954]
[1767473179433,0.07770334,90248.0,90245.0,0.06639391]
[1767473180169,0.021161,90248.0,90247.0,0.0554035]
[1767473180593,0.01120946,90248.0,90247.0,0.0554035]
[1767473182693,0.0001494,90260.0,90254.0,0.01107984]
[1767473182897,0.01107935,90258.0,90252.0,0.01108008]
[1767473183238,0.0001494,90260.0,90247.0,0.22161087]
[1767473183239,0.0112285,90260.0,90255.0,0.01107971]
[1767473183459,0.01107922,90259.0,90254.0,0.01107984]
[1767473183669,0.01107947,90257.0,90253.0,0.01107996]
[1767473183902,0.01107935,90258.0,90253.0,0.01107996]
[1767473184316,0.01107947,90257.0,90253.0,0.01107996]
[1767473184794,0.01107947,90257.0,90252.0,0.01108008]
[1767473184995,0.01107959,90256.0,90252.0,0.01108008]
[1767473185313,0.01107971,90255.0,90251.0,0.0110802]
[1767473185512,0.05540267,90249.0,90242.0,0.01108131]
[1767473185714,0.01108057,90248.0,90245.0,0.02216]
[1767473186500,0.01108057,90248.0,90240.0,0.01108156]
[1767473186501,0.05554334,90247.0,90227.0,0.05443398]
[1767473186704,0.02108094,90245.0,90237.0,0.06649109]
[1767473186910,0.02108094,90245.0,90238.0,0.0110818]
[1767473187113,0.01108119,90243.0,90238.0,0.0110818]
[1767473187524,0.01108119,90243.0,90238.0,0.06649036]
[1767473187758,0.0664868,90244.0,90240.0,0.01108156]